Cogmind - Beta 10.2 @@@ ROGUE MODE // 2021.04.02 @ 09:22:05 // AFD2021/Volatile Player: Perseus Result: Destroyed by D-53 Grenadier via exploding Nuclear Reactor Performance ------------- Evolutions (0) 0 Regions Visited (2) 400 Robots Destroyed (9) 45 Value Destroyed (129) 129 Prototype IDs (0) 0 Alien Tech Used (0) 0 Bonus (0) 0 TOTAL SCORE: 574 Bonus ------- None Cogmind --------- Core Integrity 0/250 Matter 296/300 Energy 125/125 System Corruption 6% Temperature Cool (12) Movement Walking (150) Ox1 Location -10/Mines Parts ------- > --- POWER (1) -------- Light Ion Engine > --- PROPULSION (2) --- Aluminum Leg > --- UTILITY (2) ------ Medium Storage Unit > --- WEAPON (2) ------- (None) > --- INVENTORY (8) ---- Ion Engine Wheel Compact Wheel Medium Storage Unit Large Matter Pod (150) Medium Laser Small Laser Assault Rifle Peak State ------------ > --- POWER ------------ Light Ion Engine > --- PROPULSION ------- Aluminum Leg Aluminum Leg > --- UTILITY ---------- Small Storage Unit Improved Terrain Scanner > --- WEAPON ----------- Small Laser Assault Rifle > --- INVENTORY -------- Ion Engine Wheel Compact Wheel Assault Rifle [Rating: 8] Favorites ----------- Power Light Ion Engine Engine Light Ion Engine Propulsion Aluminum Leg Leg Aluminum Leg Utility Improved Terrain Scanner Device Improved Terrain Scanner Storage Medium Storage Unit Weapon Assault Rifle Energy Gun Small Laser Ballistic Gun Assault Rifle Build | -11 -10 -10 ------- Run | Scr Mat Min Slots Evolved . | . . . Power . | . . . Propulsion . | . . . Utility . | . . . Weapon . | . . . Parts Attached 3 | 1 . 2 Power . | . . . Engine . | . . . Core . | . . . Reactor . | . . . Propulsion . | . . . Treads . | . . . Leg . | . . . Wheel . | . . . Hover . | . . . Flight . | . . . Utility 2 | 1 . 1 Device 1 | 1 . . Storage 1 | . . 1 Processor . | . . . Hackware . | . . . Protection . | . . . Artifact . | . . . Weapon 1 | . . 1 Energy Gun 1 | . . 1 Energy Cannon . | . . . Ballistic Gun . | . . . Ballistic Cannon . | . . . Launcher . | . . . Special Weapon . | . . . Impact Weapon . | . . . Slashing Weapon . | . . . Piercing Weapon . | . . . Special Melee Weapon . | . . . Unidentified Prototypes . | . . . Parts Lost 5 | . . 5 Power . | . . . Propulsion 1 | . . 1 Utility 1 | . . 1 Weapon 3 | . . 3 Highest Loss Streak 4 | . . 4 Average Slot Usage (%) 100 | . 100 100 Engine 14 | . 14 14 Leg 28 | . 28 28 Device 14 | . 14 14 Storage 14 | . 14 14 Energy Gun 14 | . 14 14 Ballistic Gun 14 | . 14 14 Naked Turns . | . . . Heaviest Build 15 | 11 11 15 Greatest Support 20 | 20 20 20 Greatest Overweight (x) . | . . . Average Overweight (x) . | . . . Largest Inventory Capacity 8 | 6 6 8 Average Capacity 7 | 6 6 7 Most Carried 8 | 6 5 8 Average Carried 7 | 5 4 7 Final Capacity 8 | 6 6 8 Final Carried 8 | 4 5 8 Class Distribution -------------------- 100% | Mutant Dominant Class ---------------- Mutant | -10/Materials Mutant | -10/Mines Resources | -11 -10 -10 ----------- Run | Scr Mat Min Matter Collected 249 | 220 . 29 Remotely . | . . . Salvage Created 275 | 169 . 106 Parts 20 | 15 . 5 Haulers Intercepted . | . . . Recyclers Shooed . | . . . Parts Field Recycled . | . . . Retrieved Matter . | . . . Parts Self-Destructed . | . . . Prevented . | . . . Kills | -11 -10 -10 ------- Run | Scr Mat Min Combat Hostiles Destroyed 2 | . . 2 Guns 2 | . . 2 Classes Destroyed 3 | 2 . 1 Tunneler 6 | 5 . 1 Recycler 1 | 1 . . Grunt 2 | . . 2 Best Kill Streak 4 | 4 . 2 Combat Bots Only 2 | . . 2 Max Kills in Single Turn 4 | 4 . 1 Gunslinging . | . . . Exploded . | . . . Melee . | . . . Uniques/NPCs Destroyed . | . . . Combat | -11 -10 -10 -------- Run | Scr Mat Min Damage Taken 574 | . . 574 Core 257 | . . 257 Absorbed by Shields . | . . . Core Remaining (%) 100 | 100 . . Volleys Fired 16 | 4 1 11 Largest 2 | 2 2 2 Hottest 60 | 60 60 60 Shots Fired 32 | 8 2 22 Gun 32 | 8 2 22 Cannon . | . . . Launcher . | . . . Special . | . . . Kinetic 16 | 4 1 11 Thermal 16 | 4 1 11 Explosive . | . . . Electromagnetic . | . . . Robot Hit Streak 8 | 5 6 8 Robot Miss Streak 4 | 2 1 4 Penetration Max . | . . . Secondary Targets 1 | . . 1 Max Gunslinging Chain 1 | . . 1 Shots Hit Robots 21 | 6 1 14 Core Hits 14 | 8 . 6 Critical Hits . | . . . Critical Kills . | . . . Critical Parts Destroyed . | . . . Melee Attacks . | . . . Impact . | . . . Slashing . | . . . Piercing . | . . . Sneak Attacks . | . . . Combat Hostiles . | . . . Follow-up Attacks . | . . . Damage Inflicted 538 | 275 12 251 Guns 290 | 87 12 191 Cannons . | . . . Explosions 248 | 188 . 60 Melee . | . . . Ramming . | . . . Kinetic 145 | 44 . 101 Thermal 193 | 72 12 109 Explosive 125 | 84 . 41 Electromagnetic 75 | 75 . . Impact . | . . . Slashing . | . . . Piercing . | . . . Highest Corruption 1 | . . 1 Average Corruption 1 | . . 1 Corruption Purged . | . . . Overload Shots . | . . . Overflow Damage . | . . . Projectiles . | . . . Explosions . | . . . Melee . | . . . Knockbacks . | . . . Impact . | . . . Kinetic . | . . . Secondary . | . . . Self-Inflicted Damage 123 | . . 123 Shots 2 | . . 2 Rammed . | . . . Targets Rammed . | . . . Kicked . | . . . Crushed . | . . . Highest Temperature 52 | . . 52 Average Temperature 30 | . . 30 Received Heat Transfer 78 | . . 78 Siege Activations . | . . . Robots Corrupted . | . . . Combat Hostiles . | . . . Parts Fried . | . . . Impact Corruptions . | . . . Robots Melted . | . . . Combat Hostiles . | . . . Parts Melted 2 | 2 . . Heat Transferred 425 | 150 25 250 Parts Sabotaged . | . . . Parts Stolen . | . . . Parts Stripped . | . . . Power Chain Reactions 1 | 1 . . Missiles Intercepted . | . . . Alert | -11 -10 -10 ------- Run | Scr Mat Min Peak Influence . | . . . Initial 19 | . 19 15 Average . | . . . Maximum Alert Level . | . . . Low Security (%) 100 | 100 100 100 Level 1 . | . . . Level 2 . | . . . Level 3 . | . . . Level 4 . | . . . Level 5 . | . . . High Security . | . . . Max Security . | . . . Squads Dispatched 2 | . 2 . Investigation 1 | . 1 . Extermination . | . . . Reinforcement 1 | . 1 . Assault . | . . . Garrison . | . . . Intercept . | . . . Construction Impeded . | . . . Haulers Reinforced . | . . . Stealth | -11 -10 -10 --------- Run | Scr Mat Min Distress Signals 1 | . 1 . Communications Jammed . | . . . Distress Signals . | . . . Times Spotted 23 | . 1 22 Peak Tracking Total 20 | . . 20 Tactical Retreats . | . . . Traps | -11 -10 -10 ------- Run | Scr Mat Min Traps Triggered . | . . . Indirectly . | . . . Trap Hack Attempts . | . . . Triggered . | . . . Disarmed . | . . . Reprogrammed . | . . . Reused . | . . . Traps Extracted . | . . . Installed . | . . . Triggered . | . . . Machines | -11 -10 -10 ---------- Run | Scr Mat Min Machines Disabled . | . . . Max in Single Turn . | . . . Machines Sabotaged . | . . . Garrisons Compromised . | . . . Overloaded Fab Kills . | . . . Fab Network Shutdowns . | . . . Hacking | -11 -10 -10 --------- Run | Scr Mat Min Machines Accessed 2 | . 1 1 Terminals 2 | . 1 1 Fabricators . | . . . Repair Stations . | . . . Recycling Units . | . . . Scanalyzers . | . . . Garrison Access . | . . . Total Hacks 5 | . 3 2 Successful 2 | . 1 1 Failed 3 | . 2 1 Catastrophic . | . . . Database Lockouts . | . . . Manual 5 | . 3 2 Terminals 5 | . 3 2 Fabricators . | . . . Repair Stations . | . . . Recycling Units . | . . . Scanalyzers . | . . . Garrison Access . | . . . Terminal Hacks 2 | . 1 1 Robot Analysis 2 | . 1 1 Fabricator Hacks . | . . . Repair Station Hacks . | . . . Recycling Unit Hacks . | . . . Scanalyzer . | . . . Garrison Access Hacks . | . . . Unauthorized Hacks . | . . . Terminals . | . . . Fabricators . | . . . Repair Stations . | . . . Recycling Units . | . . . Scanalyzers . | . . . Garrison Access . | . . . Data Cores Recovered . | . . . Used . | . . . Hacking Detections 2 | . 1 1 Full Trace Events 1 | . 1 . Feedback Events . | . . . Feedback Blocked . | . . . Robot Schematics Acquired . | . . . Robots Built . | . . . Matter . | . . . Time . | . . . Total Robot Build Rating . | . . . Part Schematics Acquired . | . . . Parts Built . | . . . Matter . | . . . Time . | . . . Total Part Build Rating . | . . . Parts Repaired . | . . . Time . | . . . Parts Recycled . | . . . Recycled Matter . | . . . Retrieved Matter . | . . . Retrieved Components . | . . . Parts Scanalyzed . | . . . Part Schematics Acquired . | . . . Parts Damaged . | . . . Bothacking | -11 -10 -10 ------------ Run | Scr Mat Min Used RIF Installer . | . . . Robots Hacked . | . . . Non-combat . | . . . Combat . | . . . Robot Hacks Applied . | . . . Relay Couplers Released . | . . . Robots Rewired . | . . . Allies Hacked . | . . . Hacks Repelled . | . . . Allies | -11 -10 -10 -------- Run | Scr Mat Min Total Allies . | . . . Largest Group . | . . . Highest-Rated Group . | . . . Highest-Rated Ally . | . . . Total Orders . | . . . Ally Attacks . | . . . Total Damage . | . . . Kills . | . . . Allies Corrupted . | . . . Allies Melted . | . . . Intel | -11 -10 -10 ------- Run | Scr Mat Min Robot Analysis Total 2 | . 1 1 Derelict Logs Recovered 1 | . . 1 Drone Launches . | . . . Drone Recoveries . | . . . Exploration | -11 -10 -10 ------------- Run | Scr Mat Min Turns Passed 556 | 68 63 425 Spaces Moved 409 | 41 50 318 Core . | . . . Treads . | . . . Legs 409 | 41 50 318 Wheels . | . . . Hover . | . . . Flight . | . . . Fastest Speed 120 | 120 120 120 Average Speed 120 | 120 120 120 Slowest Speed 120 | 120 120 120 Overloaded Moves . | . . . Propulsion Burnouts . | . . . Robots Hopped . | . . . Cave-ins Triggered . | . . . Exploration Rate (%) 31 | 3 18 74 Regions Visited 2 Branch Regions 1 Pre-discovered Areas 1 | . . 1 Known Exits Taken . | . . . Unknown Exits Taken 2 | 1 1 . Scrap Searched 1 | . . 1 Spaces Dug . | . . . Terrain Destroyed 75 | 26 . 49 Melee . | . . . Projectile . | . . . AOE 75 | 26 . 49 Terrain Rammed . | . . . Walls Destroyed . | . . . Machines Disabled . | . . . Actions | -11 -10 -10 --------- Run | Scr Mat Min Total 443 | 52 51 340 Wait 5 | 4 . 1 Move 407 | 40 49 318 Hop . | . . . Pick Up 8 | 1 1 6 Fast Attach . | . . . Attach 2 | 1 . 1 Detach . | . . . Swap 1 | . . 1 Drop 4 | 2 . 2 Fire 16 | 4 1 11 Melee . | . . . Ram . | . . . Kick . | . . . Crush . | . . . Escape Stasis . | . . . Rewire . | . . . Trap . | . . . Miscellaneous . | . . . Route ------- -11/Scrapyard -10/Materials -10/Mines (discovered 1 exit: [*Mat]) History --------- Turn | Location | Event 5 | -11/Scrapyard | Discovered new exit (range 3) 69 | -11/Scrapyard | Entered Materials 105 | -10/Materials | Discovered new exit (range 5) 132 | -10/Materials | Entered Mines 189 | -10/Mines | Deemed a non-threat by the Exiles lab entrance 281 | -10/Mines | Discovered new exit (range 4) 325 | -10/Mines | Build established: Mutant 462 | -10/Mines | Learned Materials trap positions 464 | -10/Mines | Learned location of Storage (-7) 547 | -10/Mines | Assembled infested the area 555 | -10/Mines | Core integrity fell below 50% 557 | -10/Mines | Destroyed by D-53 Grenadier via exploding Nuclear Reactor Last Messages --------------- 00557_ as-12729 destroyed. 00557_ as-66468 destroyed. 00557_ as-07615 destroyed. 00557_ as-57466 destroyed. 00557_ as-23745 destroyed. 00557_ as-25158 destroyed. 00557_ as-38383 destroyed. 00557_ as-43600 shuts down. 00557_ as-43600 destroyed. 00557_ as-07544 destroyed. 00557_ as-49108 destroyed. 00557_ as-77263 destroyed. 00557_ as-94027 destroyed. 00557_ as-65006 destroyed. 00557_ T-07 Excavator destroyed. 00557_ as-15090 destroyed. 00557_ as-19227 destroyed. 00557_ as-86462 destroyed. 00557_ as-31154 destroyed. 00557_ as-40455 destroyed. Map ----- +----------------------------------------------------+ | | | | | | | | | | | | | | | | | | | | | ?????????????????????????????#???????????????????? | | ???????????????????????????#?????????????????????? | | ?????????????????????????????????????????????????? | | ??????????????????????????????????????????????#??? | | ???????????????????????????????#####?????????????? | | ????????????????#??????????#??## ##?????????#??? | | ????????????????????????####??# ##???????????# | | ?????????????????#?????## ##?# #??????????## | | ??????????????????????## #?# #????????### | | ??????????????????????# #### ####????## | | ??????????????????????# ##???# | | ???????????????????????# ##???? | | ?????????????#### ###### ### ##????# | | ?????????????#; #?# #?????# | | ????????? ##?## #?????? | | ????????? @ ##???### #?????? | | ????????? a #?????### #?#???? | | ????????? ##???????#### #????#? | | ????????? a #???????????## #???#?? | | ?????????? #??##?#?????# ##????? | | ?????????? ? #?#????## ##??#? | | ??????????? # ## ### #?#?????# ##### | | ????????????## ## ##?# #?????### | | ?????????????#### #?# ##??# ##????## | | ??????????????? ##??# ###???# #??#### ##### | | ??????????????### ????# #??#??# #?## ##???? | | ????????????????#?????# #?????# ### """ ###?#?? | | ?????????????????????## ##????# """ ##?????? | | ????????????????? ??## ###### ### """ #?#????? | | ???????????????????## #?# #??#???? | | ??????????????????## #?# #??????? | | ??????? ?????????## ########?## ##?????# | | ???????????????#?# ##????????### #?????? | | ?#???????????????# = ###???????????# #?#??? | | ????????? ??????### ##???????????#?# #???? | | ??????????????????# ##??????????????# #???? | | ???????? ???????## ########????????## ##???? | | ???????? ?????????# ##????????# ##????? | | ????????? ????????# ###### #??????#??## ###?#??? | | ??#???????????????# #????# #???#?#????####??????? | +----------------------------------------------------+ Best States ------------- Heat Dissipation 25 Energy Generation 10 Energy Capacity 125 Matter Stores 300 Matter Capacity 300 Sight Range 16 Terrain Scan Range 16 Terrain Scan Density 10 Evasion (%) 40 Item Schematics ----------------- None Robot Schematics ------------------ None Fabricated ------------ Nothing Alien Tech Used ----------------- None Achievements -------------- None Challenges ------------ None Game ------ Seed CorruptionImprovedInsulator Manual? 0 Play Time 00:06:12 Cumulative 302.8 hours Start 2021.04.01 @ 09:17:46 End 2021.04.02 @ 09:22:05 Sessions 1 Manual Loads 0 Difficulty Rogue Special Mode AFD2021/Volatile Game No. 91 Rogue 68 Adventurer 23 Explorer 0 Win Type - Total 11 Types 8/0/2/1/0/0/0/0/0 Lore% 89 Gallery% 91 Achievement% 71 Wizard Run 0 Options --------- ASCII 0 Keyboard 0 Movement Mouse Keybinds 0 Fullscreen 1 Font 18/SmallcapsGlow Map View 76x50 Tactical HUD 1 Map Filters NONE Filters NONE Steam 1 RUN: e6e39669-b2ed-48b5-8653-a8013e46cce1